bitfinex/quotes_ETHUSD_20250123
["timestamp","ask_amount","ask_price","bid_price","bid_amount"]
[1737628557508,3.91664,3201.9,3201.5,0.1651748]
[1737628557673,0.391664,3201.8,3201.5,0.1651748]
[1737628562430,0.391664,3201.8,3201.6,3.12337]
[1737628562624,0.7935,3201.9,3201.6,3.12337]
[1737628562853,0.7935,3201.9,3201.5,0.1651748]
[1737628563043,0.55,3201.8,3201.5,0.1651748]
[1737628563364,0.7935,3201.9,3201.5,0.1651748]
[1737628563365,0.55,3201.6,3201.5,0.1651748]
[1737628563767,4.47483,3201.6,3201.5,0.1651748]
[1737628563934,5.289637,3201.6,3201.5,0.1651748]
[1737628564562,2.166207,3201.6,3201.5,0.1651748]
[1737628564870,1.3514,3201.6,3201.5,0.1651748]
[1737628567169,0.32590235,3201.7,3201.5,0.1651748]
[1737628567461,0.32590235,3201.7,3201.6,3.12343]
[1737628567865,0.8308,3202.6,3201.8,3.12317]
[1737628568081,0.32588306,3202.1,3201.8,3.12315]
[1737628568380,0.8308,3202.6,3201.8,6.24632]
[1737628568581,0.32585102,3202.1,3202.0,3.88714]
[1737628568743,1.220064,3202.9,3202.3,3.12273]
[1737628568938,0.32584883,3202.6,3202.5,3.1225]
[1737628569566,0.32584883,3202.6,3202.3,3.12267]
[1737628570166,0.32584883,3202.6,3202.4,3.12261]
[1737628570849,0.32584883,3202.6,3202.3,3.12267]
[1737628572884,0.32584883,3202.6,3202.3,6.24536]
[1737628573380,0.32584883,3202.6,3202.4,3.12265]
[1737628573584,0.32584883,3202.6,3202.1,6.24576]
[1737628573783,0.32584883,3202.6,3202.1,3.12286]
[1737628575045,0.32584883,3202.6,3201.7,0.8094]
[1737628575254,0.32584883,3202.6,3201.5,0.1651748]
[1737628575255,0.793,3202.5,3201.5,0.1651748]
[1737628575482,3.12292,3202.2,3201.8,0.20525563]
[1737628576990,3.0,3202.3,3201.6,0.12830383]
[1737628577142,6.12275,3202.3,3201.6,3.25170383]
[1737628577345,3.31545926,3202.4,3201.8,3.12321]
[1737628577346,0.19275926,3202.4,3201.8,3.12321]
[1737628577577,0.19275926,3202.4,3202.0,3.12304]
[1737628578683,0.19275926,3202.4,3201.8,3.12321]
[1737628578883,0.39857593,3202.3,3201.8,3.12321]
[1737628579060,0.39857593,3202.3,3201.8,6.24638]
[1737628579690,0.39857593,3202.3,3201.8,3.12317]
[1737628579994,0.39857593,3202.3,3201.8,6.24633]
[1737628580168,0.39857593,3202.3,3201.9,0.12841944]
[1737628580707,0.19275926,3202.4,3202.1,3.12292]
[1737628581197,0.32584883,3202.6,3202.4,3.12265]
[1737628581398,0.32584883,3202.6,3202.3,0.8159]
[1737628581604,0.32584883,3202.6,3202.4,3.12265]
[1737628583111,0.32584883,3202.6,3202.5,3.12256]
[1737628583879,0.32584883,3202.6,3202.5,3.25117491]
[1737628584497,0.7669,3203.4,3202.8,3.1222]
[1737628584677,1.155755,3203.4,3202.8,3.1222]
[1737628584868,0.32579576,3203.1,3202.8,3.1222]
[1737628587403,0.32579576,3203.1,3202.9,3.12214]
[1737628587765,0.32579576,3203.1,3203.0,3.12207]
[1737628588841,0.32579576,3203.1,3202.9,0.7993]
[1737628589726,0.32579576,3203.1,3202.9,3.9214]
[1737628590832,0.32579576,3203.1,3203.0,3.12207]
[1737628594531,3.12126,3203.9,3203.2,3.12187]
[1737628594823,0.32577277,3203.5,3203.2,3.12187]
[1737628594985,0.32577277,3203.5,3203.0,3.12207]
[1737628595748,0.32577277,3203.5,3203.0,3.12201]
[1737628596222,0.32577277,3203.5,3203.1,3.12197]
[1737628596892,0.97050005,3203.5,3202.9,0.7993]
[1737628597141,3.12182,3203.3,3202.7,3.12234]
[1737628597935,3.12168,3203.4,3202.8,3.12221]
[1737628598723,3.12168,3203.4,3202.9,0.12857234]
[1737628599145,4.88323005,3203.5,3202.9,0.12857234]
[1737628599146,0.97050005,3203.5,3202.9,0.12857234]
[1737628599460,0.32577277,3203.5,3203.2,3.12187]
[1737628600262,0.32577277,3203.5,3203.3,3.12177]
[1737628600445,0.32577277,3203.5,3203.2,0.7747]
[1737628601144,0.32577277,3203.5,3203.1,3.12188]
[1737628601445,3.83250699,3203.5,3203.0,0.12857234]
[1737628601944,3.83250699,3203.5,3203.0,3.12207]
[1737628602341,0.71091699,3203.5,3203.0,3.12207]
[1737628603221,0.7946,3203.3,3202.6,3.93933]
[1737628603432,3.91641,3203.3,3202.7,3.12234]
[1737628603754,3.12188,3203.2,3202.6,3.12243]
[1737628603908,3.12188,3203.2,3202.6,6.24481]
[1737628604113,3.12188,3203.2,3202.8,0.12847257]
[1737628604311,3.12217,3202.9,3202.8,0.12847257]
[1737628604612,3.91797,3202.9,3202.8,0.12847257]
[1737628604807,7.70284537,3202.9,3202.8,0.12847257]
[1737628605257,1.58067537,3202.9,3202.8,0.12847257]
[1737628605419,0.7958,3202.9,3202.8,0.12847257]
[1737628605622,0.7958,3202.9,3202.5,3.12253]
[1737628606330,0.7958,3202.9,3202.6,3.12245]
[1737628607326,0.7958,3202.9,3202.4,6.2452]
[1737628607716,0.7958,3202.9,3202.5,3.12251]
[1737628608422,3.0,3203.2,3202.6,3.25110625]
[1737628608622,3.0,3203.2,3202.8,3.12226]
[1737628608623,4.74667277,3203.2,3202.8,3.12226]
[1737628608827,4.74667277,3203.2,3202.6,3.25110625]
[1737628609043,4.74667277,3203.2,3202.6,6.37349625]
[1737628609536,4.74667277,3203.2,3202.6,3.25104625]
[1737628609850,3.12198,3203.1,3202.7,0.33458588]
[1737628610157,3.44776618,3203.1,3202.7,0.33458588]
[1737628610666,3.44776618,3203.1,3202.6,3.12239]
[1737628613133,0.32578618,3203.1,3202.6,3.12239]
[1737628613763,3.44778618,3203.1,3202.7,0.33485146]
[1737628615498,3.44778618,3203.1,3202.6,3.12239]
[1737628615499,3.44778618,3203.1,3202.8,0.12878154]
[1737628615655,0.32578618,3203.1,3202.8,0.12878154]
[1737628616493,3.12207,3203.0,3202.8,0.12878154]
[1737628616798,3.44783618,3203.1,3202.8,0.12878154]
[1737628616996,3.44783618,3203.1,3202.9,0.12878154]
[1737628618305,0.32578618,3203.1,3202.5,0.8076]
[1737628618593,0.32576456,3203.5,3203.1,3.9051]
[1737628618768,3.44735456,3203.5,3202.9,3.90534]
[1737628618970,3.44735456,3203.5,3203.0,3.12206]
[1737628619570,3.44735456,3203.5,3203.1,0.33470068]
[1737628620212,0.98264002,3203.5,3203.1,0.33470068]
[1737628620497,0.73034887,3203.5,3203.1,0.33470068]
[1737628620650,3.85192887,3203.5,3203.1,0.33470068]
[1737628621285,3.85192887,3203.5,3203.2,0.12872355]
[1737628622208,3.44734456,3203.5,3203.2,0.12872355]
[1737628622563,3.44734456,3203.5,3203.3,0.12872355]
[1737628623403,4.14463896,3203.5,3203.3,0.12872355]
[1737628623902,4.14463896,3203.5,3203.0,3.12207]
[1737628625277,0.7815,3203.4,3203.0,3.12207]
[1737628625620,0.7815,3203.4,3203.1,0.1287372]
[1737628627080,0.7815,3203.4,3203.2,0.1287372]
[1737628627281,3.12178,3203.3,3203.2,0.1287372]
[1737628627481,3.52636431,3203.3,3203.2,0.1287372]
[1737628628720,3.12188,3203.2,3202.6,3.94663187]
[1737628628881,3.12178,3203.3,3202.7,3.12232]
[1737628629805,3.12188,3203.2,3202.7,3.12232]
[1737628630006,0.624366,3203.1,3202.8,0.33459939]
[1737628631656,0.624366,3203.1,3202.9,0.12864929]
[1737628632537,3.12197,3203.1,3202.9,0.12864929]
[1737628632852,3.12193,3203.2,3203.0,0.12864929]
[1737628633955,4.43623984,3203.4,3203.0,0.12864929]
[1737628634162,0.32576456,3203.5,3203.2,0.7942]
[1737628634663,0.32576456,3203.5,3203.3,3.12172]
[1737628635022,0.32576456,3203.5,3203.3,0.12864929]
[1737628636656,0.32576456,3203.5,3203.4,0.12864929]
[1737628638438,0.32576456,3203.5,3203.4,3.25032929]
[1737628638656,0.8114,3204.1,3203.4,0.12864929]
[1737628638825,0.8114,3204.3,3203.8,3.12123]
[1737628639161,0.8114,3204.3,3203.8,6.24245]
[1737628639367,0.32565894,3204.2,3203.9,0.12864929]
[1737628640429,0.32565894,3204.2,3204.0,0.12864929]
[1737628641480,0.32565894,3204.2,3204.0,3.24970929]
[1737628641630,0.32565894,3204.2,3204.1,3.9313]
[1737628641824,4.3046788,3204.8,3204.2,3.12088]
[1737628642529,4.3046788,3204.8,3204.3,3.12077]
[1737628643568,4.3046788,3204.8,3204.4,0.12825286]
[1737628644135,3.12058,3204.6,3204.4,0.12825286]
[1737628644329,0.35251643,3204.5,3204.4,0.12825286]
[1737628645099,4.29122643,3204.5,3204.4,0.12825286]
[1737628645366,3.12078,3204.4,3203.8,3.12127]
[1737628646473,3.12082,3204.3,3203.9,0.12813037]
[1737628647172,4.29122643,3204.5,3204.0,3.12104]
[1737628647173,1.17061643,3204.5,3204.0,3.12104]
[1737628647672,1.9802288,3204.8,3204.2,3.12089]
[1737628647875,1.9802288,3204.8,3204.2,3.89639]
[1737628647876,3.0,3204.7,3204.2,3.89639]
[1737628648443,1.9802288,3204.8,3204.3,3.12074]
[1737628649561,5.1005788,3204.8,3204.3,3.12074]
[1737628651060,3.12058,3204.6,3204.2,0.7755]
[1737628651262,3.1209,3204.2,3203.8,0.25631626]
[1737628651501,3.1209,3204.2,3203.7,0.831]
[1737628651847,3.1209,3204.2,3203.7,3.95237]
[1737628652181,0.7903,3204.6,3204.1,3.12098]
[1737628652373,4.16258499,3204.6,3204.0,3.12109]
[1737628652577,3.0,3204.5,3204.1,3.12099]
[1737628653492,3.0,3204.3,3203.9,3.12119]
[1737628653845,3.0,3204.5,3203.9,3.12119]
[1737628654046,3.0,3204.5,3203.7,0.831]
[1737628654047,3.0,3204.5,3204.0,3.12108]
[1737628654285,7.28318499,3204.6,3203.9,3.12119]
[1737628654286,3.0,3204.3,3203.9,3.12119]
[1737628654491,3.0,3204.3,3203.7,7.69364918]
[1737628654913,6.12082,3204.3,3203.7,4.57230918]
[1737628655201,3.0,3204.3,3203.7,4.57230918]
[1737628655406,3.0,3204.3,3203.8,3.12129]
[1737628655553,3.71490385,3204.3,3203.8,3.12129]
[1737628655754,1.09863175,3204.9,3203.8,0.7972]
[1737628655996,1.09863175,3204.9,3204.3,0.8111]
[1737628655997,4.21890175,3204.9,3204.3,0.8111]
[1737628656153,4.21890175,3204.9,3204.4,3.1207]
[1737628656573,4.21890175,3204.9,3203.9,0.8111]
[1737628656777,3.12048,3204.7,3204.2,3.12089]
[1737628657653,3.12048,3204.7,3203.8,0.25690501]
[1737628657654,0.833,3204.1,3203.8,0.25690501]
[1737628658199,0.833,3204.1,3203.7,3.12135]
[1737628658359,3.44653068,3204.2,3203.7,3.12135]
[1737628658697,3.44653068,3204.2,3203.6,3.12141]
[1737628658879,3.121,3204.1,3203.4,7.05436]
[1737628659196,3.121,3204.1,3203.1,0.21423763]
[1737628659197,3.1213,3203.8,3203.3,3.12177]
[1737628659397,3.1214,3203.7,3203.5,0.12863215]
[1737628659617,3.12148,3203.6,3203.5,0.12863215]
[1737628660604,3.12148,3203.6,3203.1,0.12863215]
[1737628661289,3.12184,3203.3,3203.1,0.12863215]
[1737628661622,3.12184,3203.3,3202.9,0.20607187]
[1737628661807,3.12197,3203.1,3202.9,0.20607187]
[1737628662512,3.0,3203.2,3202.9,0.20607187]
[1737628662884,6.12187,3203.2,3202.7,0.8]
[1737628663379,0.7723,3203.4,3202.7,0.8]
[1737628663604,3.7723,3203.4,3202.8,3.12219]
[1737628663792,3.0,3203.4,3202.8,3.12219]
[1737628663997,3.0,3203.4,3203.0,3.12204]
[1737628664319,3.0,3203.4,3202.9,3.12216]
[1737628664886,6.12175,3203.4,3202.8,3.25098887]
[1737628666286,3.1219,3203.2,3202.7,3.92235]
[1737628666492,3.12205,3203.1,3202.5,3.12248]
[1737628666687,3.12208,3203.0,3202.5,3.12248]
[1737628667207,0.7675,3203.1,3202.5,3.12248]
[1737628667512,3.88948,3203.1,3202.6,0.33483425]
[1737628667823,0.7675,3203.1,3202.6,0.33483425]
[1737628668223,3.12207,3203.0,3202.6,0.33483425]
[1737628669240,3.12207,3203.0,3202.7,0.12877496]
[1737628670442,3.811027,3203.0,3202.7,0.12877496]
[1737628671023,3.12218,3202.9,3202.4,0.20592732]
[1737628671228,3.811027,3203.0,3202.4,3.32855732]
[1737628671430,3.12222,3202.9,3202.4,0.20592732]
[1737628671707,3.12227,3202.8,3202.4,0.20592732]
[1737628672518,3.12227,3202.8,3202.5,0.12867677]
[1737628673329,0.6933297,3202.8,3202.5,0.12867677]
[1737628673525,0.32568687,3203.0,3202.5,0.12867677]
[1737628673721,0.32568687,3203.0,3202.5,3.25122677]
[1737628674154,0.32568687,3203.0,3202.5,3.12255]
[1737628674536,3.44775687,3203.0,3202.5,3.12255]
[1737628675637,3.12218,3202.9,3202.3,3.91069]
[1737628675836,3.12218,3202.9,3202.3,7.03338]
[1737628676036,3.12218,3202.9,3202.3,3.91069]
[1737628676236,3.12247,3202.6,3202.3,0.788]
[1737628676478,3.12263,3202.5,3202.0,0.7582]
[1737628676777,3.12263,3202.5,3202.0,3.88124]
[1737628676978,3.12238,3202.7,3202.0,7.00421]
[1737628677146,3.85595369,3202.9,3202.0,1.36920126]
[1737628677352,3.85595369,3202.9,3202.3,3.12268]
[1737628678349,3.85595369,3202.9,3202.4,3.12264]
[1737628678792,3.84043406,3202.8,3202.2,3.12276]
[1737628679389,3.12243,3202.7,3202.2,3.12276]
[1737628680771,6.24487,3202.7,3202.0,7.00416]
[1737628681104,3.12243,3202.7,3202.1,3.12291]
[1737628681257,3.12286,3202.2,3201.6,3.89585]
[1737628681594,3.12266,3202.4,3201.9,3.12312]
[1737628681793,3.0,3202.5,3202.0,3.12302]
[1737628681977,3.0,3202.5,3202.1,0.7538]
[1737628682174,3.88618,3202.6,3202.1,0.7538]
[1737628682175,7.00872,3202.6,3202.1,0.7538]
[1737628682753,3.88618,3202.6,3202.1,0.7538]
[1737628682953,7.46916441,3202.6,3202.1,0.7538]
[1737628683496,3.84044406,3202.8,3202.1,3.87667]
[1737628683707,3.0,3202.7,3202.3,3.12275]
[1737628686100,3.12228,3202.8,3202.3,3.12275]
[1737628686653,3.44778687,3203.0,3202.4,0.8227]
[1737628686911,3.44778687,3203.0,3202.5,3.12249]
[1737628687058,3.12226,3202.8,3202.4,0.8227]
[1737628687258,3.12226,3202.8,3202.5,0.12884165]
[1737628687259,3.88656,3202.8,3202.5,0.12884165]
[1737628687709,3.12246,3202.6,3202.5,0.12884165]
[1737628688005,7.29091942,3202.6,3202.5,0.12884165]
[1737628688175,8.68493179,3202.6,3202.5,0.12884165]
[1737628688798,3.12299,3202.1,3201.8,0.33538817]
[1737628689096,3.12306,3202.0,3201.8,0.33538817]
[1737628689299,3.12299,3202.1,3201.8,0.33538817]
[1737628689300,3.12314,3201.9,3201.8,0.33538817]
[1737628689884,3.12314,3201.9,3201.5,0.1651748]
[1737628690874,3.12314,3201.9,3201.6,0.12910448]
[1737628691275,3.12325,3201.8,3201.6,0.12910448]
[1737628691596,3.435564,3201.8,3201.6,0.12910448]
[1737628691801,0.807,3202.1,3201.6,0.12910448]
[1737628691956,3.92996,3202.1,3201.6,0.12910448]
[1737628692160,3.12305,3202.0,3201.5,0.1651748]
[1737628692604,3.12336,3201.7,3201.5,0.1651748]
[1737628692766,3.12343,3201.6,3201.5,0.1651748]
[1737628692965,3.748109,3201.6,3201.5,0.1651748]
[1737628693166,4.531009,3201.6,3201.5,0.1651748]
[1737628693583,1.407579,3201.6,3201.5,0.1651748]
[1737628693824,0.7829,3201.8,3201.5,0.1651748]
[1737628693994,3.0,3201.8,3201.5,0.1651748]
[1737628694324,3.12343,3201.6,3201.5,0.1651748]
[1737628694531,3.90633,3201.6,3201.5,0.1651748]
[1737628694731,7.31091431,3201.6,3201.5,0.16516558]
[1737628694881,3.7829,3201.5,3200.8,0.20634913]
[1737628695084,3.0,3200.8,3200.0,0.2]
[1737628695396,3.12472,3200.3,3200.0,0.2]
[1737628695794,3.12484,3200.2,3200.0,0.2]
[1737628696036,6.1249,3200.1,3200.0,0.2]
[1737628696216,6.9339,3200.1,3200.0,0.2]
[1737628696531,7.76913638,3200.1,3200.0,0.2]
[1737628696742,8.31913638,3200.1,3200.0,0.2]
[1737628696903,7.51013638,3200.1,3198.8,3.2514359]
[1737628697138,6.88407,3198.9,3198.8,3.2514359]
[1737628697799,3.758,3198.9,3198.8,3.2514359]
[1737628698127,6.88407,3198.9,3198.8,1.86953512]
[1737628698286,6.88407,3198.9,3198.8,0.45250118]
[1737628698488,3.12607,3198.9,3198.3,0.1651748]
[1737628698715,6.92626,3198.4,3198.3,0.1651748]
[1737628699193,6.12656,3198.4,3198.3,0.1651748]
[1737628699482,3.52498014,3198.8,3198.3,0.1651748]
[1737628699713,3.0,3198.6,3198.3,0.1651748]
[1737628700131,6.12628,3198.7,3198.3,0.1651748]
[1737628700426,3.12647,3198.5,3198.3,0.1651748]
[1737628701025,6.90076,3198.4,3198.3,0.1651748]
[1737628701732,3.90076,3198.4,3198.3,0.1651748]
[1737628701892,0.65250801,3198.6,3198.3,0.1651748]
[1737628702286,3.52504014,3198.8,3198.3,0.1651748]
[1737628702883,3.0,3198.7,3198.3,0.1651748]
[1737628703099,3.52504014,3198.8,3198.3,0.1651748]
[1737628703327,0.39880014,3198.8,3198.3,0.1651748]
[1737628703919,3.52497014,3198.8,3198.3,0.1651748]
[1737628704227,0.43337701,3198.7,3198.3,0.1651748]
[1737628704438,0.32577101,3198.8,3198.5,3.12646]
[1737628704726,3.12604,3199.0,3198.3,0.1651748]
[1737628704928,3.12587,3199.1,3198.3,0.1651748]
[1737628705332,1.12867846,3199.2,3198.5,3.12638]
[1737628705688,0.42544285,3199.1,3198.5,3.12638]
[1737628705888,0.42544285,3199.1,3198.8,3.12615]
[1737628706089,0.32577846,3199.2,3198.9,3.12607]
[1737628706688,0.32577846,3199.2,3198.7,3.12624]
[1737628706889,0.32577846,3199.2,3198.8,3.12609]
[1737628707883,3.0,3199.5,3198.8,3.12609]
[1737628708836,6.12552,3199.5,3198.8,3.12609]
[1737628709133,0.612552,3199.4,3198.6,3.12634]
[1737628709429,3.12569,3199.3,3198.4,3.12654]
[1737628709644,3.1258,3199.2,3198.5,3.12644]
[1737628709834,3.12569,3199.3,3198.6,3.12633]
[1737628710637,0.612552,3199.4,3198.4,3.12656]
[1737628710942,3.738142,3199.4,3198.7,3.12619]
[1737628711100,0.9863642,3199.3,3198.7,3.12619]
[1737628712100,3.12579,3199.2,3198.5,3.12646]
[1737628712302,3.12574,3199.3,3198.5,3.12646]
[1737628712501,3.1258,3199.2,3198.5,3.12646]
[1737628712927,3.12574,3199.3,3198.5,3.12646]
[1737628713123,0.3738292,3199.2,3198.6,3.12636]
[1737628713525,3.9084,3199.7,3199.0,3.12597]
[1737628715842,3.9084,3199.7,3199.3,3.12567]
[1737628715843,0.7831,3199.7,3199.3,3.12567]
[1737628716048,3.0,3199.8,3199.4,3.12558]
[1737628716410,1.61129924,3200.0,3198.7,0.64011307]
[1737628716411,0.82159924,3200.0,3199.6,3.12531]
[1737628716609,3.92362,3200.3,3199.6,3.12531]
[1737628717011,3.12483,3200.2,3199.6,3.12531]
[1737628717247,3.92362,3200.3,3199.6,3.12531]
[1737628717911,3.12481,3200.2,3199.6,3.12531]
[1737628718454,3.0,3200.2,3199.6,3.12531]
[1737628718653,3.73548993,3200.2,3199.6,3.12531]
[1737628719251,6.86028993,3200.2,3199.6,3.12531]
[1737628719457,3.73548993,3200.2,3199.6,3.12531]
[1737628719827,6.86030993,3200.2,3199.6,3.12531]
[1737628720367,3.73548993,3200.2,3199.6,3.12531]
[1737628721010,6.86032993,3200.2,3199.5,0.8013]
[1737628721253,1.12152293,3200.1,3199.5,0.8013]
[1737628721459,1.12152293,3200.1,3199.5,3.92672]
[1737628721616,3.12515,3199.9,3199.1,3.88588]
[1737628721951,3.12515,3199.9,3199.2,3.12569]
[1737628722264,3.0,3199.7,3199.2,3.12569]
[1737628722554,3.612519,3199.7,3199.2,3.12569]
[1737628722721,3.737839,3199.7,3199.3,0.12819301]
[1737628722912,3.1254,3199.6,3199.3,0.12819301]
[1737628723919,4.368919,3199.7,3199.3,0.12819301]
[1737628724116,0.612519,3199.7,3199.3,3.12567]
[1737628725223,3.7731,3199.9,3199.3,3.12567]
[1737628725558,6.8982,3199.9,3199.3,3.12567]
[1737628725714,3.7731,3199.9,3199.3,3.12567]
[1737628725913,3.7731,3199.9,3199.4,0.12853893]
[1737628726161,6.89819,3199.9,3199.4,0.12853893]
[1737628726460,3.7731,3199.9,3199.4,0.12853893]
[1737628726759,3.0,3199.7,3199.4,0.12853893]
[1737628727127,3.0,3199.7,3199.5,0.12853893]
[1737628728265,6.12533,3199.7,3199.5,0.12853893]
[1737628728556,1.002322,3199.8,3199.5,0.12853893]
[1737628728775,0.7900572,3199.7,3199.6,0.12853893]
[1737628728930,3.7900572,3199.7,3199.6,0.12853893]
[1737628729553,6.9153472,3199.7,3199.6,0.12853893]
[1737628729925,3.7900572,3199.7,3199.6,0.12853893]
[1737628730275,8.55857861,3199.7,3199.6,0.12853893]
[1737628731377,3.12584,3199.2,3198.9,0.20595467]
[1737628732547,3.12589,3199.1,3198.9,0.20595467]
[1737628732897,3.0,3199.3,3198.9,0.20595467]
[1737628733171,6.12577,3199.3,3199.0,0.12882502]
[1737628733343,3.12579,3199.2,3199.0,0.12882502]
[1737628733946,3.0,3199.3,3199.0,0.12882502]
[1737628734292,6.738291,3199.3,3199.1,0.12882502]
[1737628735230,3.12578,3199.2,3199.1,0.12882502]
[1737628735432,3.12578,3199.2,3198.7,3.12621]
[1737628736178,6.738251,3199.3,3198.7,3.12621]
[1737628736377,6.738241,3199.3,3198.6,3.12636]
[1737628736576,6.738241,3199.3,3198.7,3.12617]
[1737628736775,0.9863851,3199.2,3198.8,0.33531579]
[1737628737534,3.0,3199.4,3198.8,3.46138579]
[1737628737733,3.0,3199.5,3198.8,3.46138579]
[1737628737978,3.0,3199.3,3198.8,3.46138579]
[1737628738335,3.0,3199.3,3198.9,0.33531579]
[1737628738536,6.12568,3199.3,3198.9,0.33531579]
[1737628738765,0.925128,3199.2,3198.9,0.33531579]
[1737628738946,3.12543,3199.6,3199.0,3.12596]
[1737628739155,4.5713572,3199.7,3199.2,3.12575]
[1737628739348,3.7900572,3199.7,3199.2,3.12575]
[1737628739749,3.9153472,3199.7,3199.1,0.7728]
[1737628740044,3.0,3199.5,3199.1,0.7728]
[1737628740356,3.0,3199.5,3199.1,3.89867]
[1737628741281,3.0,3199.5,3199.2,0.1289601]
[1737628741478,6.12549,3199.5,3199.2,0.1289601]
[1737628743378,6.12549,3199.5,3198.8,3.88439]
[1737628743553,0.612549,3199.4,3198.8,3.88439]
[1737628743958,0.612549,3199.4,3198.9,3.46128047]
[1737628744476,0.612549,3199.4,3198.9,0.33527047]
[1737628744777,1.10718898,3200.0,3199.1,3.12587]
[1737628744963,3.12518,3199.9,3199.3,3.12563]
[1737628745283,3.12518,3199.9,3199.4,3.12558]
[1737628745440,3.0,3199.8,3199.4,3.12558]
[1737628745640,3.32578898,3200.0,3199.6,3.12538]
[1737628745987,0.6450719,3199.9,3199.3,3.12567]
[1737628746209,0.6450719,3199.9,3199.2,1.16157047]
[1737628746347,3.0,3199.8,3199.3,3.12562]
[1737628746748,3.0,3199.8,3199.4,3.12554]
[1737628747363,3.0,3199.8,3199.4,3.25448267]
[1737628747583,3.0,3199.8,3199.4,0.12894267]
[1737628747888,0.67701819,3199.7,3199.4,0.12894267]
[1737628748191,0.67701819,3199.7,3199.4,3.25451267]
[1737628748550,0.67701819,3199.7,3199.2,3.952]
[1737628748748,0.67701819,3199.7,3199.3,3.12562]
[1737628748995,0.67701819,3199.7,3199.2,3.952]
[1737628749377,3.0,3199.7,3199.2,7.07771]
[1737628749595,3.0,3199.7,3199.3,0.12893187]
[1737628751067,3.831963,3200.1,3199.5,3.12547]
[1737628751290,3.0,3200.0,3199.5,3.25441187]
[1737628751500,3.12502,3200.0,3199.5,0.12893187]
[1737628752401,3.12509,3199.9,3199.6,0.12893187]
[1737628753397,3.12509,3199.9,3199.4,3.12558]
[1737628753608,3.5083043,3199.9,3199.4,3.12558]
[1737628754311,0.3832143,3199.9,3199.4,3.12558]
[1737628754522,3.5083043,3199.9,3199.2,3.95207]
[1737628754757,3.12539,3199.6,3199.2,0.8263]
[1737628755071,3.12539,3199.6,3199.3,0.12889706]
[1737628755271,0.701923,3199.5,3199.3,0.12889706]
[1737628755887,3.12558,3199.4,3199.3,0.12889706]
[1737628756083,0.701923,3199.5,3199.3,0.12889706]
[1737628756284,0.701923,3199.5,3199.2,0.8232]
[1737628756611,3.827433,3199.5,3199.0,3.33215844]
[1737628756790,0.701923,3199.5,3199.0,3.33215844]
[1737628757169,0.7685,3199.7,3199.2,3.12577]
[1737628757387,3.12523,3199.8,3199.2,3.12577]
[1737628758396,6.1253,3199.7,3199.2,3.12577]
[1737628758798,3.0,3199.7,3199.2,3.12577]
[1737628759095,3.0,3199.7,3199.4,3.12557]
[1737628759404,3.0,3199.7,3199.5,0.7745]
[1737628759405,3.612511,3199.7,3199.5,0.7745]
[1737628760610,0.612511,3199.7,3199.5,0.7745]
[1737628760792,3.612511,3199.7,3199.5,0.7745]
[1737628761009,3.612511,3199.7,3199.3,3.12563]
[1737628761235,0.612511,3199.7,3199.3,3.12563]
[1737628761597,0.612511,3199.7,3199.3,3.1256]
[1737628762341,0.612511,3199.7,3199.4,0.12888105]
[1737628763839,0.612511,3199.7,3199.4,3.25446105]
[1737628764037,0.612511,3199.7,3199.4,3.12557]
[1737628764241,0.612511,3199.7,3199.2,0.8223]
[1737628764430,0.612511,3199.7,3199.2,3.94805]
[1737628764740,0.612511,3199.7,3199.3,0.12896299]
[1737628765568,0.612511,3199.7,3199.3,3.25462299]
[1737628766064,0.612511,3199.7,3199.4,0.12896299]
[1737628766471,0.612511,3199.7,3199.4,3.25453299]
[1737628766775,3.12511,3199.9,3199.4,3.25453299]
[1737628767372,3.12511,3199.9,3199.5,0.33525307]
[1737628768368,3.0,3200.0,3199.5,0.33525307]
[1737628768739,1.20847934,3200.2,3199.5,0.33525307]
[1737628768972,0.7772,3200.2,3199.7,0.7935]
[1737628769182,1.467388,3200.2,3199.6,3.12529]
[1737628769332,0.7772,3200.2,3199.6,3.12529]
[1737628769672,0.7772,3200.2,3199.6,3.25425299]
[1737628771240,0.7772,3200.2,3199.7,0.33518064]
[1737628771541,3.8011,3200.5,3199.8,0.7827]
[1737628771859,3.8011,3200.5,3199.8,3.90788]
[1737628772470,3.8011,3200.5,3199.9,0.12896299]
[1737628772673,0.78031917,3200.4,3199.9,0.12896299]
[1737628773783,0.8011,3200.5,3199.9,3.25398299]
[1737628773984,0.44635233,3200.6,3200.1,3.12488]
[1737628774185,0.8011,3200.8,3200.1,3.12482]
[1737628774774,0.8011,3200.8,3200.2,3.12478]
[1737628775183,0.87763167,3201.0,3200.4,0.7595]
[1737628775371,0.87763167,3201.0,3200.4,3.8841]
[1737628775577,3.87763167,3201.0,3200.4,3.8841]
[1737628776588,0.8149,3201.3,3200.8,3.12417]
[1737628776805,0.8149,3201.3,3200.5,0.12896299]
[1737628777004,0.8149,3201.3,3200.7,3.1243]
[1737628778921,0.8149,3201.3,3200.4,0.7595]
[1737628779224,0.7644,3200.5,3199.9,0.766]
[1737628779407,0.43127934,3200.4,3199.9,0.766]
[1737628779589,0.87763167,3200.4,3199.9,0.9809365]
[1737628779787,0.44635233,3200.4,3199.9,0.9809365]
[1737628780044,3.57097233,3200.4,3199.9,0.2149365]
[1737628780349,3.12483,3200.2,3199.9,0.2149365]
[1737628780558,3.12492,3200.1,3199.9,0.2149365]
[1737628780754,3.12492,3200.1,3199.7,0.20563019]
[1737628781281,0.7888,3200.0,3199.7,0.20563019]
[1737628781443,3.12519,3199.8,3199.7,0.20563019]
[1737628781980,3.12519,3199.8,3199.5,0.23258078]
[1737628782340,3.12519,3199.8,3199.1,0.43821097]
[1737628782778,3.91384,3200.0,3199.1,3.56401097]
[1737628782978,3.91384,3200.0,3199.1,6.68982097]
[1737628783244,3.91384,3200.0,3199.2,3.12577]
[1737628783444,3.91384,3200.0,3199.1,3.56401097]
[1737628783641,3.12514,3199.9,3199.2,0.56675721]
[1737628784167,3.12522,3199.8,3199.2,0.56675721]
[1737628784789,3.12522,3199.8,3199.3,0.12854624]